Body Name,Date,Transaction Number,Invoice Number,Net Amount,VAT,Supplier Name,Supplier ID,Expense Area,Expense Type,Expense Code
Redditch Borough Council,18/01/2017,271413,BE270,8218.09,1643.61,B Evans & Son,103,Rbc Balance Sheet,Contract Payments,8131
Redditch Borough Council,11/01/2017,270829,0817A,4450.62,890.12,B Evans & Son,103,Voids,Repairs In House Team,3107
Redditch Borough Council,11/01/2017,269734,0812,3704.59,740.92,B Evans & Son,103,Rbc Balance Sheet,Dlo,8130
Redditch Borough Council,11/01/2017,269733,0811,3658.4,731.68,B Evans & Son,103,Rbc Balance Sheet,Dlo,8130
Redditch Borough Council,11/01/2017,270828,0818A,3152.92,630.59,B Evans & Son,103,Voids,Repairs In House Team,3107
Redditch Borough Council,11/01/2017,269737,0810,542.36,108.47,B Evans & Son,103,Rbc Balance Sheet,Contract Payments,8131
Redditch Borough Council,11/01/2017,271026,VAL046177,55901.75,11180.35,N Power Business And Social Housing Limited,1030,Rbc Balance Sheet,Contract Payments,8131
Redditch Borough Council,11/01/2017,271025,VAL046197,55546.65,11109.33,N Power Business And Social Housing Limited,1030,Rbc Balance Sheet,Contract Payments,8131
Redditch Borough Council,04/01/2017,270583,PI059824,2377.92,475.58,N Power Business And Social Housing Limited,1030,Planned,Contractors,5158
Redditch Borough Council,04/01/2017,270584,PI059783,1123.66,224.73,N Power Business And Social Housing Limited,1030,Response Maintenance,Contractors,5158
Redditch Borough Council,25/01/2017,271793,9002058675,9867.6,1973.52,Birmingham City Council,1035,Post Room/Messenger Service,Franking Machine,4400
Redditch Borough Council,18/01/2017,271242,9002097568,6584.92,1316.98,Birmingham City Council,1035,Post Room/Messenger Service,Franking Machine,4400
Redditch Borough Council,25/01/2017,270475,9002124162,5199.91,1039.98,Birmingham City Council,1035,Post Room/Messenger Service,Franking Machine,4400
Redditch Borough Council,25/01/2017,271786,SI05169843,809.02,-4.06,Dulux Decorator Centres,1082,Crossgate Stocks,Received Not Invoiced,2096
Redditch Borough Council,25/01/2017,271786,SI05169843,3.45,0.69,Dulux Decorator Centres,1082,Crossgate Stocks,Stock Variance,1203
Redditch Borough Council,25/01/2017,271786,SI05169843,0,161.8,Dulux Decorator Centres,1082,Crossgate Stocks,Stock Account (Cedar),1201
Redditch Borough Council,04/01/2017,270333,800333591,1036.2,0,Bromsgrove District Council,1114,Sports Dev & Com'Ty Recreation,Shared Service Income R/C,5021
Redditch Borough Council,11/01/2017,270383,ARCMIN/99060641,5212.5,1042.5,Advanced Business Solutions,114,It Licences Direct Services,Software Maintenance,4503
Redditch Borough Council,04/01/2017,270327,0190/00031032,1207.5,0,N & C Building Products Ltd,1160,Crossgate Stocks,Received Not Invoiced,2096
Redditch Borough Council,04/01/2017,270327,0190/00031032,0,241.5,N & C Building Products Ltd,1160,Crossgate Stocks,Stock Account (Cedar),1201
Redditch Borough Council,18/01/2017,266369,C/PY147844,8000,1600,Civica Uk Limited,1233,Customer Service Centres,Software Enhancements,4502
Redditch Borough Council,04/01/2017,270576,Redacted Personal Data,780,0,The Carpet & Bed Centre,13058P,Internal Ins A/C,Third Party Claims,2941
Redditch Borough Council,04/01/2017,270435,6579297,534.56,106.91,C P C Plc,133,Theatre Management,Operational Equip- Purchase,4150
Redditch Borough Council,11/01/2017,270950,0606003003,701.5,0,Malvern Hills District Council,1344,Members Services,Misc. Expenses,4730
Redditch Borough Council,04/01/2017,270371,15699,535.5,0,Focal Image.Co.Uk (Bromsgrove) Limited,1389,Crossgate Stocks,Received Not Invoiced,2096
Redditch Borough Council,04/01/2017,270371,15699,0,107.1,Focal Image.Co.Uk (Bromsgrove) Limited,1389,Crossgate Stocks,Stock Account (Cedar),1201
Redditch Borough Council,18/01/2017,271436,1ST INS 2016/17,8270,0,The Redditch Play Council,1392,Grants To Vol Sector,Grants To Voluntary Bodies,4661
Redditch Borough Council,25/01/2017,271512,1084498,723.06,144.61,Redacted Personal Data,1413,Hsg Tenancy Management Team,Agency Staff,3020
Redditch Borough Council,04/01/2017,270352,1087291,701.76,140.35,Redacted Personal Data,1413,Hsg Tenancy Management Team,Agency Staff,3020
Redditch Borough Council,25/01/2017,271243,SINV-100509,800.49,0,Gelpack Excelsior Limited,1448,Crossgate Stocks,Received Not Invoiced,2096
Redditch Borough Council,25/01/2017,271243,SINV-100509,0.01,0,Gelpack Excelsior Limited,1448,Crossgate Stocks,Stock Variance,1203
Redditch Borough Council,25/01/2017,271243,SINV-100509,0,160.1,Gelpack Excelsior Limited,1448,Crossgate Stocks,Stock Account (Cedar),1201
Redditch Borough Council,18/01/2017,271440,1629,2566.2,513.24,Brian Yeates Associates,1451,Theatre Management,Professional Fees,4352
Redditch Borough Council,11/01/2017,268972,12896,2699,0,Vernon Print & Design,1455,Theatre Management,External Printing,4302
Redditch Borough Council,11/01/2017,268968,12897,560,112,Vernon Print & Design,1455,Arts Development And Support,Operational Equip- Purchase,4150
Redditch Borough Council,18/01/2017,271426,DEDS JAN 17,678.45,0,Birmingham Hospital Saturday Fund,1508,Payroll Control,Payments Over -Current Year,2921
Redditch Borough Council,18/01/2017,271430,DEDS JAN 17,1416.75,0,Unison West Midlands Regional Centre,1510,Payroll Control,Payments Over -Current Year,2921
Redditch Borough Council,18/01/2017,271483,INV00113115,1648,329.6,Reed Business Information Limited,1521,Local Taxation,Water Charges,3450
Redditch Borough Council,18/01/2017,270532,VP63913270Q0450,11469.87,2293.97,British Telecommunications Plc,153,Rbc It Costs,Telephone Calls,4452
Redditch Borough Council,18/01/2017,270970,26102844Q015,1456.58,291.32,British Telecommunications Plc,153,Rbc It Costs,Remote Wan Link,4511
Redditch Borough Council,18/01/2017,270969,26102491Q015,1187.88,237.58,British Telecommunications Plc,153,Rbc It Costs,Remote Wan Link,4511
Redditch Borough Council,18/01/2017,270971,26103203Q021,768.62,153.72,British Telecommunications Plc,153,Rbc It Costs,Remote Wan Link,4511
Redditch Borough Council,12/01/2017,268818,SSE23112016,7802,1560.4,Stage Right Promotions,1551,Theatre Management,Professional Fees,4352
Redditch Borough Council,18/01/2017,271353,15/16538,1862.25,0,Whats Your Point,1563,Community Centres,Project Work,4733
Redditch Borough Council,11/01/2017,270945,INV205576,2043.33,408.67,University Of Worcester,1635,Community Parks & Open Spaces,Professional Fees,4352
Redditch Borough Council,04/01/2017,270340,508615,625,125,Premier Concepts Ltd,1691,Lifeline - Support,Advertising,4735
Redditch Borough Council,04/01/2017,270302,5086811,620,124,Premier Concepts Ltd,1691,Climate Change,Misc. Expenses,4730
Redditch Borough Council,25/01/2017,271881,2017/1675820,832.84,166.56,Eca,193,Voids Team,Subscriptions,4650
Redditch Borough Council,25/01/2017,267839,2202051412,4080.5,0,Worcestershire County Council,195,Land Charges,Search Fees - Wcc,5004
Redditch Borough Council,11/01/2017,269731,220410610,575.52,115.1,Worcestershire County Council,195,Community Development,Electricity,3300
Redditch Borough Council,04/01/2017,268931,2204106199,567.5,-8.96,Worcestershire County Council,195,Community Development,Gas,3301
Redditch Borough Council,25/01/2017,267208,2203021593,561,0,Worcestershire County Council,195,Land Charges,Search Fees - Wcc,5004
Redditch Borough Council,11/01/2017,269731,220410610,396.55,0,Worcestershire County Council,195,Community Development,Caretaking,3603
Redditch Borough Council,11/01/2017,269731,220410610,204.2,40.84,Worcestershire County Council,195,Community Development,Gas,3301
Redditch Borough Council,11/01/2017,269731,220410610,198.12,39.62,Worcestershire County Council,195,Community Development,Refuse Collection,3602
Redditch Borough Council,04/01/2017,268931,2204106199,179.19,8.96,Worcestershire County Council,195,Community Development,Electricity,3300
Redditch Borough Council,11/01/2017,269731,220410610,31.08,6.22,Worcestershire County Council,195,Community Development,Water Charges,3450
Redditch Borough Council,04/01/2017,269119,68407,2124,424.8,Durolas (Contractors) Ltd,205,Rbc Balance Sheet,Contract Payments,8131
Redditch Borough Council,04/01/2017,270409,190862,887.97,-0.01,Hacketts Pipeline,2105,Crossgate Stocks,Received Not Invoiced,2096
Redditch Borough Council,04/01/2017,270409,190862,0.01,0,Hacketts Pipeline,2105,Crossgate Stocks,Stock Variance,1203
Redditch Borough Council,04/01/2017,270409,190862,0,177.61,Hacketts Pipeline,2105,Crossgate Stocks,Stock Account (Cedar),1201
Redditch Borough Council,04/01/2017,270554,CA-004446,4542.73,0,A To Z Builders,2181,Rbc Balance Sheet,Lifetime Grant,8704
Redditch Borough Council,04/01/2017,270557,CA-006210,2857.27,0,A To Z Builders,2181,Rbc Balance Sheet,Lifetime Grant,8704
Redditch Borough Council,11/01/2017,270854,M/ME096/02,916.7,171.1,Federation Of Burial Cremation Author.  Fbca,2276,Crematoria,Subscriptions,4650
Redditch Borough Council,04/01/2017,270478,3213661,8906.22,1781.24,Phonographic Performance Limited (Ppl),2333,Indoor Sports & Rec Facilities,Licences,4710
Redditch Borough Council,04/01/2017,270577,ZM:02133004045,1276.17,0,Redacted Personal Data,2340,Internal Ins A/C,Third Party Claims,2941
Redditch Borough Council,11/01/2017,268817,0730,1720,0,Abbeyclean,2367,Community Development,Contract Cleaning,3600
Redditch Borough Council,18/01/2017,271082,320430246,1819.55,0,Eurocell Building Plastics Ltd,24,Crossgate Stocks,Received Not Invoiced,2096
Redditch Borough Council,25/01/2017,271829,320466903,1544.5,0,Eurocell Building Plastics Ltd,24,Crossgate Stocks,Received Not Invoiced,2096
Redditch Borough Council,18/01/2017,271311,320438711,1448.5,0,Eurocell Building Plastics Ltd,24,Crossgate Stocks,Received Not Invoiced,2096
Redditch Borough Council,18/01/2017,271082,320430246,0,363.91,Eurocell Building Plastics Ltd,24,Crossgate Stocks,Stock Account (Cedar),1201
Redditch Borough Council,18/01/2017,271311,320438711,0,289.7,Eurocell Building Plastics Ltd,24,Crossgate Stocks,Stock Account (Cedar),1201
Redditch Borough Council,25/01/2017,271829,320466903,0,308.9,Eurocell Building Plastics Ltd,24,Crossgate Stocks,Stock Account (Cedar),1201
Redditch Borough Council,11/01/2017,270985,3370058531,1555.23,0,Severn Trent Water,2411,Indoor Sports & Rec Facilities,Water Charges,3450
Redditch Borough Council,11/01/2017,270985,3370058531,1483.82,0,Severn Trent Water,2411,Welfare Services,Water Charges,3450
Redditch Borough Council,11/01/2017,270985,3370058531,797.1,0,Severn Trent Water,2411,Administrative Buildings,Water Charges,3450
Redditch Borough Council,11/01/2017,270985,3370058531,266.75,0,Severn Trent Water,2411,Comm. Related Asset Property,Water Charges,3450
Redditch Borough Council,11/01/2017,270985,3370058531,61.35,0,Severn Trent Water,2411,Business Centres,Water Charges,3450
Redditch Borough Council,04/01/2017,270080,INV286256,2877,575.4,Tpg Disable Aids,242,Rbc Balance Sheet,Contract Payments,8131
Redditch Borough Council,04/01/2017,270384,294265,983.02,196.6,Dennis Eagle Ltd,250,Household Waste Collection,Materials (Veh),3700
Redditch Borough Council,04/01/2017,270087,DE11000993,977.71,195.54,Dennis Eagle Ltd,250,Household Waste Collection,Contractors,3701
Redditch Borough Council,11/01/2017,271019,INV 12206,600,120,Cooper Mobile Services Limited,2549,Household Waste Collection,Contract Hire,3850
Redditch Borough Council,25/01/2017,267148,12251,600,120,Cooper Mobile Services Limited,2549,Household Waste Collection,Contract Hire,3850
Redditch Borough Council,11/01/2017,267002,18703/3228,522,104.4,Maxwell Jones Studios Ltd,256,Indoor Sports & Rec Facilities,Operational Equip- Purchase,4150
Redditch Borough Council,18/01/2017,271453,FINAL INS 16/17,750,0,The Ditch Youth Project,2633,Grants To Vol Sector,Grants To Voluntary Bodies,4661
Redditch Borough Council,04/01/2017,267055,9591,10520,2104,M & D Carpentry & Bldng Contractor Ltd,265,Rbc Balance Sheet,Contract Payments,8131
Redditch Borough Council,04/01/2017,267055,9591,9257.98,1851.6,M & D Carpentry & Bldng Contractor Ltd,265,Voids Team,Contractors,5158
Redditch Borough Council,04/01/2017,268619,9546,9207.24,1841.45,M & D Carpentry & Bldng Contractor Ltd,265,Voids Team,Contractors,5158
Redditch Borough Council,18/01/2017,270078,9767,8103.93,1620.79,M & D Carpentry & Bldng Contractor Ltd,265,Voids Team,Contractors,5158
Redditch Borough Council,11/01/2017,269886,9764,4747.99,949.6,M & D Carpentry & Bldng Contractor Ltd,265,Rbc Balance Sheet,Direct Payments,8132
Redditch Borough Council,04/01/2017,268620,9560,4475.28,895.06,M & D Carpentry & Bldng Contractor Ltd,265,Rbc Balance Sheet,Contract Payments,8131
Redditch Borough Council,04/01/2017,268619,9546,4000,800,M & D Carpentry & Bldng Contractor Ltd,265,Rbc Balance Sheet,Contract Payments,8131
Redditch Borough Council,04/01/2017,267056,9596,3847.03,769.41,M & D Carpentry & Bldng Contractor Ltd,265,Rbc Balance Sheet,Contract Payments,8131
Redditch Borough Council,04/01/2017,267057,9597,3847.03,769.41,M & D Carpentry & Bldng Contractor Ltd,265,Rbc Balance Sheet,Contract Payments,8131
Redditch Borough Council,04/01/2017,267058,9598,3847.03,769.41,M & D Carpentry & Bldng Contractor Ltd,265,Rbc Balance Sheet,Contract Payments,8131
Redditch Borough Council,04/01/2017,267059,9599,3847.03,769.41,M & D Carpentry & Bldng Contractor Ltd,265,Rbc Balance Sheet,Contract Payments,8131
Redditch Borough Council,18/01/2017,270078,9767,3302,660.4,M & D Carpentry & Bldng Contractor Ltd,265,Rbc Balance Sheet,Contract Payments,8131
Redditch Borough Council,04/01/2017,267622,9602,2294.19,458.84,M & D Carpentry & Bldng Contractor Ltd,265,Rbc Balance Sheet,Contract Payments,8131
Redditch Borough Council,04/01/2017,267054,9590,2254.11,450.82,M & D Carpentry & Bldng Contractor Ltd,265,Voids Team,Contractors,5158
Redditch Borough Council,11/01/2017,269214,9737,1820,364,M & D Carpentry & Bldng Contractor Ltd,265,Response Maintenance,Contractors,5158
Redditch Borough Council,04/01/2017,265159,9511,1618.73,323.75,M & D Carpentry & Bldng Contractor Ltd,265,Rbc Balance Sheet,Dlo,8130
Redditch Borough Council,04/01/2017,267606,9618,1500,300,M & D Carpentry & Bldng Contractor Ltd,265,Rbc Balance Sheet,Contract Payments,8131
Redditch Borough Council,04/01/2017,267042,9578,1498.69,299.74,M & D Carpentry & Bldng Contractor Ltd,265,Rbc Balance Sheet,Contract Payments,8131
Redditch Borough Council,18/01/2017,270309,9773,1348.48,269.7,M & D Carpentry & Bldng Contractor Ltd,265,Rbc Balance Sheet,Contract Payments,8131
Redditch Borough Council,11/01/2017,267604,9620,1260,252,M & D Carpentry & Bldng Contractor Ltd,265,Response Maintenance,Contractors,5158
Redditch Borough Council,11/01/2017,269812,9762,1135.2,227.04,M & D Carpentry & Bldng Contractor Ltd,265,Rbc Balance Sheet,Contract Payments,8131
Redditch Borough Council,11/01/2017,268756,9721,1135.05,227.01,M & D Carpentry & Bldng Contractor Ltd,265,Rbc Balance Sheet,Contract Payments,8131
Redditch Borough Council,04/01/2017,265151,9504,1015.3,203.06,M & D Carpentry & Bldng Contractor Ltd,265,Rbc Balance Sheet,Contract Payments,8131
Redditch Borough Council,04/01/2017,267040,9576,1000.89,200.18,M & D Carpentry & Bldng Contractor Ltd,265,Rbc Balance Sheet,Contract Payments,8131
Redditch Borough Council,04/01/2017,268617,9523,872.39,174.48,M & D Carpentry & Bldng Contractor Ltd,265,Response Maintenance,Contractors,5158
Redditch Borough Council,04/01/2017,268757,9722,809.87,161.97,M & D Carpentry & Bldng Contractor Ltd,265,Rbc Balance Sheet,Contract Payments,8131
Redditch Borough Council,04/01/2017,267606,9618,749.39,149.88,M & D Carpentry & Bldng Contractor Ltd,265,Response Maintenance,Contractors,5158
Redditch Borough Council,11/01/2017,269811,9761,675.92,135.18,M & D Carpentry & Bldng Contractor Ltd,265,Response Maintenance,Contractors,5158
Redditch Borough Council,04/01/2017,268616,9525,643.32,128.66,M & D Carpentry & Bldng Contractor Ltd,265,Response Maintenance,Contractors,5158
Redditch Borough Council,11/01/2017,267047,9583,610.5,122.1,M & D Carpentry & Bldng Contractor Ltd,265,Response Maintenance,Contractors,5158
Redditch Borough Council,11/01/2017,267043,9579,561.54,112.31,M & D Carpentry & Bldng Contractor Ltd,265,Rbc Balance Sheet,Contract Payments,8131
Redditch Borough Council,18/01/2017,271040,49722,2127,425.4,Sse Audio Group,2695,Theatre Management,Operational Equip- Purchase,4150
Redditch Borough Council,11/01/2017,269382,30405,18136.6,3627.32,Robert Bruce Construction  Limited,2950,Rbc Balance Sheet,Contract Payments,8131
Redditch Borough Council,11/01/2017,269790,30407,9818.51,1963.7,Robert Bruce Construction  Limited,2950,Rbc Balance Sheet,Contract Payments,8131
Redditch Borough Council,11/01/2017,270423,30415,9120.75,1824.15,Robert Bruce Construction  Limited,2950,Rbc Balance Sheet,Contract Payments,8131
Redditch Borough Council,25/01/2017,271356,29717,1230.4,246.08,B&S Chains Midland Limited Playground Spares,2995,O'Door Sports & Rec Facilities,Recreational Equip -Reps/Maint,4102
Redditch Borough Council,25/01/2017,268750,0705/0190827,2166.89,433.38,Jewson Ltd,300,Responsive Repairs,Materials,4170
Redditch Borough Council,04/01/2017,270541,0705/0191722,1282.86,256.58,Jewson Ltd,300,Responsive Repairs,Materials,4170
Redditch Borough Council,18/01/2017,271286,153344,2950,590,James Green Farm Machinery,304,Rbc Balance Sheet,Vehicles - Purchase,8150
Redditch Borough Council,11/01/2017,266633,152507,639.22,127.84,James Green Farm Machinery,304,Strategic Routes,Materials (Veh),3700
Redditch Borough Council,18/01/2017,271433,81607089,693.14,138.63,Office Depot (Uk) Ltd,3098,Local Taxation,Office Consumables,4304
Redditch Borough Council,18/01/2017,271433,81607089,178.78,35.76,Office Depot (Uk) Ltd,3098,Equipment & Adaptations,Office Consumables,4304
Redditch Borough Council,18/01/2017,271434,81619029,177,35.4,Office Depot (Uk) Ltd,3098,Lifeline - Support,Computer Consumables,4500
Redditch Borough Council,18/01/2017,271434,81619029,158.37,31.67,Office Depot (Uk) Ltd,3098,Crematoria,Office Consumables,4304
Redditch Borough Council,18/01/2017,271434,81619029,137.62,27.52,Office Depot (Uk) Ltd,3098,New Print Facilities,Central Printing,4301
Redditch Borough Council,18/01/2017,271434,81619029,134.25,4.22,Office Depot (Uk) Ltd,3098,Caretakers,Catering Provisions(Vat Exempt,4200
Redditch Borough Council,18/01/2017,271433,81607089,107.07,21.41,Office Depot (Uk) Ltd,3098,Hsg Tenancy Management Team,Office Consumables,4304
Redditch Borough Council,18/01/2017,271434,81619029,100.91,20.18,Office Depot (Uk) Ltd,3098,Theatre Management,Office Consumables,4304
Redditch Borough Council,18/01/2017,271434,81619029,95.61,19.13,Office Depot (Uk) Ltd,3098,Finance,Office Consumables,4304
Redditch Borough Council,18/01/2017,271433,81607089,78.64,15.73,Office Depot (Uk) Ltd,3098,New Print Facilities,Central Printing,4301
Redditch Borough Council,18/01/2017,271434,81619029,74.49,14.9,Office Depot (Uk) Ltd,3098,Crematoria,Computer Consumables,4500
Redditch Borough Council,18/01/2017,271434,81619029,44.75,8.95,Office Depot (Uk) Ltd,3098,Equipment & Adaptations,Office Consumables,4304
Redditch Borough Council,18/01/2017,271434,81619029,39.08,7.82,Office Depot (Uk) Ltd,3098,Customer Service Centres,Office Consumables,4304
Redditch Borough Council,18/01/2017,271433,81607089,35.3,7.06,Office Depot (Uk) Ltd,3098,Env Services Management,Office Consumables,4304
Redditch Borough Council,18/01/2017,271434,81619029,32.43,6.49,Office Depot (Uk) Ltd,3098,Lifeline - Support,Office Consumables,4304
Redditch Borough Council,18/01/2017,271433,81607089,31.84,6.37,Office Depot (Uk) Ltd,3098,Lifeline - Support,Office Consumables,4304
Redditch Borough Council,18/01/2017,271433,81607089,29.96,5.99,Office Depot (Uk) Ltd,3098,Finance,Office Consumables,4304
Redditch Borough Council,18/01/2017,271434,81619029,23.99,4.8,Office Depot (Uk) Ltd,3098,Env Services Management,Office Consumables,4304
Redditch Borough Council,18/01/2017,271434,81619029,21.66,4.33,Office Depot (Uk) Ltd,3098,Concessionary Travel,Office Consumables,4304
Redditch Borough Council,18/01/2017,271434,81619029,15.02,3,Office Depot (Uk) Ltd,3098,Benefits,Office Consumables,4304
Redditch Borough Council,18/01/2017,271433,81607089,14,2.8,Office Depot (Uk) Ltd,3098,P A & Directorate Support,Office Consumables,4304
Redditch Borough Council,18/01/2017,271434,81619029,5.65,1.13,Office Depot (Uk) Ltd,3098,Economic Development,Office Consumables,4304
Redditch Borough Council,18/01/2017,271434,81619029,3.24,0.65,Office Depot (Uk) Ltd,3098,Corporate Staff Costs,Office Consumables,4304
Redditch Borough Council,18/01/2017,262365,2016/2731,700,140,J B A Consulting,3123,Community Parks & Open Spaces,Professional Fees,4352
Redditch Borough Council,18/01/2017,271452,CREDIT OUT,-700,-140,J B A Consulting,3123,Community Parks & Open Spaces,Professional Fees,4352
Redditch Borough Council,04/01/2017,269706,57067,550.93,110.19,Spa Gas Ltd,3207,Response Maintenance,Contractors,5158
Redditch Borough Council,18/01/2017,270894,A9980122166,1083.88,216.77,Ats Euromaster Ltd,3306,Household Waste Collection,Materials (Veh),3700
Redditch Borough Council,18/01/2017,270894,A9980122166,188.36,37.66,Ats Euromaster Ltd,3306,Responsive Repairs,Materials (Veh),3700
Redditch Borough Council,18/01/2017,270894,A9980122166,75.13,15.02,Ats Euromaster Ltd,3306,Place Team 2 (Redditch),Materials (Veh),3700
Redditch Borough Council,18/01/2017,270894,A9980122166,42,8.4,Ats Euromaster Ltd,3306,Place Team 3 (Redditch),Materials (Veh),3700
Redditch Borough Council,18/01/2017,270894,A9980122166,21,4.2,Ats Euromaster Ltd,3306,Strategic Routes,Materials (Veh),3700
Redditch Borough Council,18/01/2017,270894,A9980122166,14.27,2.85,Ats Euromaster Ltd,3306,Voids Team,Materials (Veh),3700
Redditch Borough Council,04/01/2017,270407,CLE0145,748,0,Am & Pm Cleaning Solutions,35039,Cleaners Oncost,Agency Staff,3020
Redditch Borough Council,25/01/2017,268878,1617018032,26381,5276.2,Iveco Ltd,35060,Rbc Balance Sheet,Vehicles - Purchase,8150
Redditch Borough Council,25/01/2017,268879,1617018031,26381,5276.2,Iveco Ltd,35060,Rbc Balance Sheet,Vehicles - Purchase,8150
Redditch Borough Council,25/01/2017,270947,1617018648,26381,5276.2,Iveco Ltd,35060,Rbc Balance Sheet,Vehicles - Purchase,8150
Redditch Borough Council,25/01/2017,271795,22DECEMBER2016,3250,650,St Philips Chambers,35558,Legal Services,Professional Fees,4352
Redditch Borough Council,11/01/2017,271063,01249970576,561.3,112.3,E E Limited ****Airtime Only****,3656,Community Development,Mobile Phone,4455
Redditch Borough Council,11/01/2017,271063,01249970576,379,75.8,E E Limited ****Airtime Only****,3656,Members Services,Mobile Phone,4455
Redditch Borough Council,11/01/2017,271063,01249970576,276.9,55.37,E E Limited ****Airtime Only****,3656,Payments,Mobile Phone,4455
Redditch Borough Council,11/01/2017,271063,01249970576,174.6,34.91,E E Limited ****Airtime Only****,3656,Housing Locality Service,Mobile Phone,4455
Redditch Borough Council,11/01/2017,271063,01249970576,168.04,33.61,E E Limited ****Airtime Only****,3656,Hsg Tenancy Management Team,Mobile Phone,4455
Redditch Borough Council,11/01/2017,271063,01249970576,89.33,17.84,E E Limited ****Airtime Only****,3656,Responsive Repairs,Mobile Phone,4455
Redditch Borough Council,11/01/2017,271063,01249970576,84.28,16.86,E E Limited ****Airtime Only****,3656,Lifeline - Support,Mobile Phone,4455
Redditch Borough Council,11/01/2017,271063,01249970576,77.4,15.48,E E Limited ****Airtime Only****,3656,Voids Team,Mobile Phone,4455
Redditch Borough Council,11/01/2017,271063,01249970576,76.75,15.35,E E Limited ****Airtime Only****,3656,Community Centres,Mobile Phone,4455
Redditch Borough Council,11/01/2017,271063,01249970576,69.55,13.89,E E Limited ****Airtime Only****,3656,Arts Development And Support,Mobile Phone,4455
Redditch Borough Council,11/01/2017,271063,01249970576,57.38,11.48,E E Limited ****Airtime Only****,3656,Equipment & Adaptations,Mobile Phone,4455
Redditch Borough Council,11/01/2017,271063,01249970576,37.98,7.59,E E Limited ****Airtime Only****,3656,Hsg Capital,Mobile Phone,4455
Redditch Borough Council,11/01/2017,271063,01249970576,37.1,7.42,E E Limited ****Airtime Only****,3656,Sports Dev & Com'Ty Recreation,Mobile Phone,4455
Redditch Borough Council,11/01/2017,271063,01249970576,36.55,7.31,E E Limited ****Airtime Only****,3656,Indoor Sports & Rec Facilities,Mobile Phone,4455
Redditch Borough Council,11/01/2017,271063,01249970576,28.48,5.7,E E Limited ****Airtime Only****,3656,Community Safety,Mobile Phone,4455
Redditch Borough Council,11/01/2017,271063,01249970576,26.4,5.28,E E Limited ****Airtime Only****,3656,Planning Policy,Mobile Phone,4455
Redditch Borough Council,11/01/2017,271063,01249970576,25.65,5.13,E E Limited ****Airtime Only****,3656,Community Parks & Open Spaces,Mobile Phone,4455
Redditch Borough Council,11/01/2017,271063,01249970576,22.9,4.58,E E Limited ****Airtime Only****,3656,Anti-Social Behaviour,Mobile Phone,4455
Redditch Borough Council,11/01/2017,271063,01249970576,22.45,4.49,E E Limited ****Airtime Only****,3656,Customer Service Centres,Mobile Phone,4455
Redditch Borough Council,11/01/2017,271063,01249970576,22.08,4.42,E E Limited ****Airtime Only****,3656,Areas Of Highest Need,Mobile Phone,4455
Redditch Borough Council,11/01/2017,271063,01249970576,18.45,3.69,E E Limited ****Airtime Only****,3656,Head Of Community Services,Mobile Phone,4455
Redditch Borough Council,11/01/2017,271063,01249970576,18.45,3.69,E E Limited ****Airtime Only****,3656,Head Of Housing Services,Mobile Phone,4455
Redditch Borough Council,11/01/2017,271063,01249970576,18.45,3.69,E E Limited ****Airtime Only****,3656,Head Of Planning & Regeneratio,Mobile Phone,4455
Redditch Borough Council,11/01/2017,271063,01249970576,16.95,3.39,E E Limited ****Airtime Only****,3656,St Davids Hse - Support,Mobile Phone,4455
Redditch Borough Council,11/01/2017,271063,01249970576,14.2,2.84,E E Limited ****Airtime Only****,3656,Leisure & Cultural Management,Mobile Phone,4455
Redditch Borough Council,11/01/2017,271063,01249970576,13.75,2.75,E E Limited ****Airtime Only****,3656,Hsg Options,Mobile Phone,4455
Redditch Borough Council,11/01/2017,271063,01249970576,11.45,2.29,E E Limited ****Airtime Only****,3656,Business Development Services,Mobile Phone,4455
Redditch Borough Council,11/01/2017,271063,01249970576,11.45,2.29,E E Limited ****Airtime Only****,3656,Business Dev Manager,Mobile Phone,4455
Redditch Borough Council,11/01/2017,271063,01249970576,11.45,2.29,E E Limited ****Airtime Only****,3656,Cultural Services Manager,Mobile Phone,4455
Redditch Borough Council,11/01/2017,271063,01249970576,11.45,2.29,E E Limited ****Airtime Only****,3656,Finance,Mobile Phone,4455
Redditch Borough Council,11/01/2017,271063,01249970576,11.45,2.29,E E Limited ****Airtime Only****,3656,Head Of Leisure & Cultural Ser,Mobile Phone,4455
Redditch Borough Council,11/01/2017,271063,01249970576,11.45,2.29,E E Limited ****Airtime Only****,3656,Mortgage Control A/C,Mobile Phone,4455
Redditch Borough Council,11/01/2017,271063,01249970576,11.45,2.29,E E Limited ****Airtime Only****,3656,Sports Services Manager,Mobile Phone,4455
Redditch Borough Council,11/01/2017,271063,01249970576,8.45,1.69,E E Limited ****Airtime Only****,3656,Public Buildings,Mobile Phone,4455
Redditch Borough Council,11/01/2017,271063,01249970576,8.2,1.64,E E Limited ****Airtime Only****,3656,Executive Director Lec,Mobile Phone,4455
Redditch Borough Council,11/01/2017,271063,01249970576,8.2,1.64,E E Limited ****Airtime Only****,3656,Head Of Environmental Ser,Mobile Phone,4455
Redditch Borough Council,11/01/2017,271063,01249970576,6.1,1.22,E E Limited ****Airtime Only****,3656,Theatre Management,Mobile Phone,4455
Redditch Borough Council,11/01/2017,271063,01249970576,5.53,1.11,E E Limited ****Airtime Only****,3656,O'Door Sports & Rec Facilities,Mobile Phone,4455
Redditch Borough Council,11/01/2017,271063,01249970576,5.5,1.1,E E Limited ****Airtime Only****,3656,Benefits,Mobile Phone,4455
Redditch Borough Council,11/01/2017,271063,01249970576,5.5,1.1,E E Limited ****Airtime Only****,3656,B'Grove Community Safety,Mobile Phone,4455
Redditch Borough Council,11/01/2017,271063,01249970576,5.5,1.1,E E Limited ****Airtime Only****,3656,Caretakers,Mobile Phone,4455
Redditch Borough Council,11/01/2017,271063,01249970576,5.5,1.1,E E Limited ****Airtime Only****,3656,Museums And Gallaries,Mobile Phone,4455
Redditch Borough Council,11/01/2017,271063,01249970576,2.75,0.55,E E Limited ****Airtime Only****,3656,Bromsgrove Cctv,Mobile Phone,4455
Redditch Borough Council,11/01/2017,271063,01249970576,2.75,0.55,E E Limited ****Airtime Only****,3656,Caretaking,Mobile Phone,4455
Redditch Borough Council,11/01/2017,271063,01249970576,2.75,0.55,E E Limited ****Airtime Only****,3656,Cleaners Oncost,Mobile Phone,4455
Redditch Borough Council,11/01/2017,271063,01249970576,2.75,0.55,E E Limited ****Airtime Only****,3656,Climate Change,Mobile Phone,4455
Redditch Borough Council,11/01/2017,271063,01249970576,2.75,0.55,E E Limited ****Airtime Only****,3656,Concessionary Travel,Mobile Phone,4455
Redditch Borough Council,11/01/2017,271063,01249970576,2.75,0.55,E E Limited ****Airtime Only****,3656,Data Base & Hsg Performance,Mobile Phone,4455
Redditch Borough Council,11/01/2017,271063,01249970576,2.75,0.55,E E Limited ****Airtime Only****,3656,Human Resources,Mobile Phone,4455
Redditch Borough Council,11/01/2017,271063,01249970576,2.75,0.55,E E Limited ****Airtime Only****,3656,Land Drainage,Mobile Phone,4455
Redditch Borough Council,11/01/2017,271063,01249970576,1.2,0.24,E E Limited ****Airtime Only****,3656,Crematoria,Mobile Phone,4455
Redditch Borough Council,11/01/2017,271063,01249970576,1.2,0.24,E E Limited ****Airtime Only****,3656,Landscape Team Was (South W),Mobile Phone,4455
Redditch Borough Council,11/01/2017,271063,01249970576,0.43,0.09,E E Limited ****Airtime Only****,3656,Cleansing Team,Mobile Phone,4455
Redditch Borough Council,11/01/2017,271063,01249970576,-12.25,-2.45,E E Limited ****Airtime Only****,3656,Household Waste Collection,Mobile Phone,4455
Redditch Borough Council,11/01/2017,270376,D12882,775,155,Acs Ltd,3659,Local Taxation,Training,3043
Redditch Borough Council,04/01/2017,254884,F02338,660,132,Acs Ltd,3659,Revenues- Bdc Only,Consultants Fees,4351
Redditch Borough Council,04/01/2017,254884,F02338,660,132,Acs Ltd,3659,Revenues -Rbc Only,Consultants Fees,4351
Redditch Borough Council,25/01/2017,271940,1000/1056,1400,280,R S T S Landscaping Limited,370,Allotments,Routine Grounds Maintenance,3200
Redditch Borough Council,04/01/2017,270635,34-47,830.06,0,R D Rogers Butchers,373,St Davids Hse Luncheon Club,Catering Provisions(Vat Exempt,4200
Redditch Borough Council,25/01/2017,271886,12555,798.6,159.72,Practical Care Products Ltd,391,Equipment & Adaptations,Materials,4170
Redditch Borough Council,11/01/2017,270795,12340,573,114.6,Practical Care Products Ltd,391,Voids Team,Materials,4170
Redditch Borough Council,18/01/2017,271072,12511,551,110.2,Practical Care Products Ltd,391,Equipment & Adaptations,Materials,4170
Redditch Borough Council,18/01/2017,271083,12512,551,110.2,Practical Care Products Ltd,391,Equipment & Adaptations,Materials,4170
Redditch Borough Council,04/01/2017,270615,12481,522,104.4,Practical Care Products Ltd,391,Voids Team,Materials,4170
Redditch Borough Council,25/01/2017,270515,2194AA0467,8085.5,1617.1,City Plumbing Supplies Ltd (Pts),395,Planned,Contractors,5158
Redditch Borough Council,25/01/2017,271523,2194AA0720,811.07,0,City Plumbing Supplies Ltd (Pts),395,Crossgate Stocks,Received Not Invoiced,2096
Redditch Borough Council,04/01/2017,270503,2194AA0428,506.47,101.29,City Plumbing Supplies Ltd (Pts),395,Planned,Contractors,5158
Redditch Borough Council,25/01/2017,271523,2194AA0720,0,162.21,City Plumbing Supplies Ltd (Pts),395,Crossgate Stocks,Stock Account (Cedar),1201
Redditch Borough Council,25/01/2017,271523,2194AA0720,-0.04,-0.01,City Plumbing Supplies Ltd (Pts),395,Crossgate Stocks,Stock Variance,1203
Redditch Borough Council,11/01/2017,271016,CA-006367,1128,0,Wood & Haynes,404,Rbc Balance Sheet,Disabled Facilities Grant,8701
Redditch Borough Council,11/01/2017,270414,0153,4000.25,0,Ryce,40451,Community Centres,Project Work,4733
Redditch Borough Council,11/01/2017,269895,5980,1300,260,West Midlands Employers,422,Job Evaluation,Training,3043
Redditch Borough Council,11/01/2017,270009,1785,1410,282,W D Ornamental Ironwork,440,Rbc Balance Sheet,Other Contract Payments,8155
Redditch Borough Council,25/01/2017,271302,71897298,706.85,135.39,Bidvest Foodservice,4449,Theatre Management,Catering Provisions(Vatable),4202
Redditch Borough Council,25/01/2017,271889,25000063382015,2248.9,449.78,Valuation Office Agency,449,Asset Disposal,Professional Fees,4352
Redditch Borough Council,25/01/2017,271743,91102952,586.47,117.29,Univar Bv,451,Indoor Sports & Rec Facilities,Materials,4170
Redditch Borough Council,18/01/2017,269440,EX11013099,1779.2,355.84,Lex Autolease Ltd,4578,Community Parks & Open Spaces,Operating Leases,3851
Redditch Borough Council,18/01/2017,271278,EXI1019715,1779.2,355.84,Lex Autolease Ltd,4578,Community Parks & Open Spaces,Operating Leases,3851
Redditch Borough Council,18/01/2017,270784,EXI1018007,734.42,146.9,Lex Autolease Ltd,4578,Rbc Hedgecutting,Operating Leases,3851
Redditch Borough Council,04/01/2017,270436,30033044,4497.88,899.58,Tunstall  Limited,459,Lifeline - Support,Operation Equip -Rep & Maint,4152
Redditch Borough Council,25/01/2017,262204,3IN/10284669,1560,312,Tunstall  Limited,459,Lifeline - Support,Operational Equip- Purchase,4150
Redditch Borough Council,11/01/2017,270853,4164664,38460.87,7692.17,Danwood Group Limited,4599,New Print Facilities,Operating Leases,4153
Redditch Borough Council,11/01/2017,270858,4164666,1001.79,200.36,Danwood Group Limited,4599,New Print Facilities,Operating Leases,4153
Redditch Borough Council,11/01/2017,270859,4164667,1001.79,200.36,Danwood Group Limited,4599,New Print Facilities,Operating Leases,4153
Redditch Borough Council,11/01/2017,270860,4164668,1001.79,200.36,Danwood Group Limited,4599,New Print Facilities,Operating Leases,4153
Redditch Borough Council,11/01/2017,271028,180418,608.58,121.72,Tudor Environmental,461,Community Parks & Open Spaces,Materials,4170
Redditch Borough Council,04/01/2017,270562,CA-003856,2028,0,Solihull Maintenance Ltd,4702,Rbc Balance Sheet,Disabled Facilities Grant,8701
Redditch Borough Council,25/01/2017,270428,28922,919.61,183.92,Arcane Direct Marketing,4714,Theatre Management,Advertising,4735
Redditch Borough Council,18/01/2017,270830,28224,4425,885,Uk Container Maintenance Limited,4751,Rbc Balance Sheet,Machinery & Equip - Purchase,8152
Redditch Borough Council,18/01/2017,270831,28225,1275,255,Uk Container Maintenance Limited,4751,Rbc Balance Sheet,Machinery & Equip - Purchase,8152
Redditch Borough Council,13/01/2017,271332,Redacted Personal Data,4630,0,Redacted Personal Data,4782,Housing Policy,Rents,3350
Redditch Borough Council,04/01/2017,270005,4094,37249.11,7449.82,Kelbec Civils Ltd,4794,Rbc Balance Sheet,Contract Payments,8131
Redditch Borough Council,25/01/2017,270783,DATE,5238,1047.6,Kelbec Civils Ltd,4794,Rbc Balance Sheet,Other Contract Payments,8155
Redditch Borough Council,25/01/2017,267870,4005,4594.25,918.85,Kelbec Civils Ltd,4794,Response Maintenance,Drainage,3201
Redditch Borough Council,25/01/2017,270912,4100,3408.51,681.7,Kelbec Civils Ltd,4794,Response Maintenance,Drainage,3201
Redditch Borough Council,18/01/2017,271489,00000170,5955.25,0,Your Ideas Ltd,4796,Community Centres,Project Work,4733
Redditch Borough Council,25/01/2017,270949,17088,610.48,122.1,P G Drapes Ltd,4860,Theatre Management,Operational Equip- Purchase,4150
Redditch Borough Council,11/01/2017,270468,102734,6666.67,0,Diamond Bus Company Limited,499,Concessionary Travel,Concessionary Travel,5150
Redditch Borough Council,11/01/2017,267764,6003435902,7909.5,1581.9,Capita Business Services,5005,Revenues- Bdc Only,Software Enhancements,4502
Redditch Borough Council,04/01/2017,270496,52483,1941,388.2,Sos Group Services Ltd,5054,Response Maintenance,Drainage,3201
Redditch Borough Council,11/01/2017,270781,100A,2939.5,0,Redacted Personal Data,5065,Crematoria,Medical Fees,3040
Redditch Borough Council,25/01/2017,270559,AVA-1889,10791.5,2158.3,A V Activ,5123,Rbc Balance Sheet,Machinery & Equip - Purchase,8152
Redditch Borough Council,25/01/2017,271763,0000037675,21870.54,0,Harvest Energy Limited,5136,Crossgate Stocks,Received Not Invoiced,2096
Redditch Borough Council,04/01/2017,270106,0000035086,21424.94,0,Harvest Energy Limited,5136,Crossgate Stocks,Received Not Invoiced,2096
Redditch Borough Council,04/01/2017,270106,0000035086,0,4284.99,Harvest Energy Limited,5136,Crossgate Stocks,Stock Account (Cedar),1201
Redditch Borough Council,25/01/2017,271763,0000037675,0,4374.11,Harvest Energy Limited,5136,Crossgate Stocks,Stock Account (Cedar),1201
Redditch Borough Council,18/01/2017,261356,ICC247735/M,662.39,132.48,Indepth Managed Services (Cleaning),5139,Indoor Sports & Rec Facilities,Contract Cleaning,3600
Redditch Borough Council,25/01/2017,263143,ICC248161/M,662.39,132.47,Indepth Managed Services (Cleaning),5139,Indoor Sports & Rec Facilities,Contract Cleaning,3600
Redditch Borough Council,18/01/2017,261356,ICC247735/M,0,-0.01,Indepth Managed Services (Cleaning),5139,O'Door Sports & Rec Facilities,Contract Cleaning,3600
Redditch Borough Council,11/01/2017,269167,INV02823,652,130.4,Limelight,5165,Theatre Management,Catering Provisions(Vat Exempt,4200
Redditch Borough Council,25/01/2017,271059,INV02923,652,130.4,Limelight,5165,Theatre Management,Purchases For Resale,4050
Redditch Borough Council,11/01/2017,270917,131PART2,728,0,Redacted Personal Data,52057,Theatre Management,Professional Fees,4352
Redditch Borough Council,04/01/2017,270467,131PART1,532,0,Redacted Personal Data,52057,Theatre Management,Professional Fees,4352
Redditch Borough Council,18/01/2017,271261,04628PS,1400,280,Playsmart Uk,5264,O'Door Sports & Rec Facilities,Recreational Equip -Reps/Maint,4102
Redditch Borough Council,25/01/2017,271350,151329,1280,256,Uk Event And Entertainment Services,5288,Indoor Sports & Rec Facilities,Operational Equip- Purchase,4150
Redditch Borough Council,18/01/2017,270553,DEC2016,740,0,Redacted Personal Data,5301,Indoor Sports & Rec Facilities,Casual Staff,3022
Redditch Borough Council,25/01/2017,271728,34302,4190.65,838.13,Blachere Illumination Uk,5315,Rbc Christmas Lights,Operational Equip- Purchase,4150
Redditch Borough Council,04/01/2017,269781,8624165,14490,2898,Grant Thornton Uk Llp,5364,Corporate Expenses,Audit Fees,4359
Redditch Borough Council,04/01/2017,270374,8628823,13720,2744,Grant Thornton Uk Llp,5364,Corporate Expenses,Audit Fees,4359
Redditch Borough Council,04/01/2017,270429,8629236,8760,1752,Grant Thornton Uk Llp,5364,Corporate Expenses,Audit Fees,4359
Redditch Borough Council,04/01/2017,269780,8624360,2000,400,Grant Thornton Uk Llp,5364,Corporate Expenses,Audit Fees,4359
Redditch Borough Council,11/01/2017,270786,IN18254,2011.06,402.21,Matrix Scm Ltd,5367,Household Waste Collection,Agency Staff,3020
Redditch Borough Council,11/01/2017,270448,IN18180,1916.66,383.33,Matrix Scm Ltd,5367,Household Waste Collection,Agency Staff,3020
Redditch Borough Council,04/01/2017,270320,IN18110,1826.52,365.3,Matrix Scm Ltd,5367,Household Waste Collection,Agency Staff,3020
Redditch Borough Council,04/01/2017,269661,IN18038,1619.75,323.95,Matrix Scm Ltd,5367,Household Waste Collection,Agency Staff,3020
Redditch Borough Council,11/01/2017,270448,IN18180,1297.96,259.59,Matrix Scm Ltd,5367,Payments,Agency Staff,3020
Redditch Borough Council,04/01/2017,270320,IN18110,878.11,175.63,Matrix Scm Ltd,5367,Hsg Tenancy Management Team,Agency Staff,3020
Redditch Borough Council,11/01/2017,270448,IN18180,875.41,175.09,Matrix Scm Ltd,5367,Hsg Tenancy Management Team,Agency Staff,3020
Redditch Borough Council,04/01/2017,269661,IN18038,874.5,174.9,Matrix Scm Ltd,5367,Hsg Tenancy Management Team,Agency Staff,3020
Redditch Borough Council,11/01/2017,270786,IN18254,424.57,84.91,Matrix Scm Ltd,5367,Payments,Agency Staff,3020
Redditch Borough Council,04/01/2017,269661,IN18038,417.9,83.58,Matrix Scm Ltd,5367,Business Development Services,Agency Staff,3020
Redditch Borough Council,04/01/2017,270320,IN18110,417.9,83.58,Matrix Scm Ltd,5367,Business Development Services,Agency Staff,3020
Redditch Borough Council,11/01/2017,270786,IN18254,417.9,83.58,Matrix Scm Ltd,5367,Business Development Services,Agency Staff,3020
Redditch Borough Council,11/01/2017,270786,IN18254,383.59,76.72,Matrix Scm Ltd,5367,Hsg Tenancy Management Team,Agency Staff,3020
Redditch Borough Council,11/01/2017,270915,1628,850.24,0,Redacted Personal Data,5382,Theatre Management,Professional Fees,4352
Redditch Borough Council,25/01/2017,270892,1612350,614.79,122.96,Kingfisher Environmental Services Ltd,5393,Indoor Sports & Rec Facilities,Operation Equip -Rep & Maint,4152
Redditch Borough Council,25/01/2017,271882,82961244,1000,0,Neopost Finance Limited,5419,Post Room/Messenger Service,Postage Other,4402
Redditch Borough Council,04/01/2017,267661,7107485089,1610,322,Speedy (Hire) Asset Services Ltd,543,Countryside Rec And M'Ment,Operation Equip- Hire & Rental,4151
Redditch Borough Council,18/01/2017,271510,486,646,0,Redacted Personal Data,54700,Crematoria,Professional Fees,4352
Redditch Borough Council,11/01/2017,270897,484,510,0,Redacted Personal Data,54700,Crematoria,Professional Fees,4352
Redditch Borough Council,04/01/2017,270132,02378,1230,0,A P Window & Carpet Cleaning,5472,Community Centres,Casual Staff,3022
Redditch Borough Council,04/01/2017,268185,02401,840,0,A P Window & Carpet Cleaning,5472,Community Centres,Casual Staff,3022
Redditch Borough Council,04/01/2017,270131,02406,750,0,A P Window & Carpet Cleaning,5472,Community Centres,Casual Staff,3022
Redditch Borough Council,25/01/2017,271305,02424,615,0,A P Window & Carpet Cleaning,5472,Community Centres,Casual Staff,3022
Redditch Borough Council,25/01/2017,271851,CA-005953,3601,0,Prism Medical Uk Westholme Division,5503,Rbc Balance Sheet,Disabled Facilities Grant,8701
Redditch Borough Council,25/01/2017,271742,13669,3802.5,760.5,Maid Marions,5543,Other Special Services,Contract Cleaning,3600
Redditch Borough Council,11/01/2017,270415,13670,1096.33,219.27,Maid Marions,5543,Indoor Sports & Rec Facilities,Contract Cleaning,3600
Redditch Borough Council,11/01/2017,264686,CD970421762,750,150,Agrovista (Sherriff) Uk Ltd,5562,Grounds Maint - Parks,Materials,4170
Redditch Borough Council,18/01/2017,269392,LNVOCE252P26737,529.47,105.89,Pertemps Recruitment Partnership Ltd,557,Voids Team,Agency Staff,3020
Redditch Borough Council,18/01/2017,271246,252P268481,529.47,105.89,Pertemps Recruitment Partnership Ltd,557,Voids Team,Agency Staff,3020
Redditch Borough Council,25/01/2017,271809,252P269631,529.47,105.89,Pertemps Recruitment Partnership Ltd,557,Voids Team,Agency Staff,3020
Redditch Borough Council,18/01/2017,267649,IW03150543,733.83,0,Northgate Vehicle Hire Ltd,5573,Response Maintenance,Contract Hire,3850
Redditch Borough Council,18/01/2017,268247,IW03158776,660.36,0,Northgate Vehicle Hire Ltd,5573,Response Maintenance,Contract Hire,3850
Redditch Borough Council,11/01/2017,271018,Redacted Personal Data,1625,0,Lamberts Property Centres,5589,Homelessness Administration,Rent Deposit Scheme,4701
Redditch Borough Council,18/01/2017,270824,20095,7342,1468.39,Pauls Electrical Services Ltd,559,Response Maintenance,Contractors,5158
Redditch Borough Council,18/01/2017,270825,20093,2926.74,585.43,Pauls Electrical Services Ltd,559,Response Maintenance,Contractors,5158
Redditch Borough Council,18/01/2017,270823,20098,1754.54,350.92,Pauls Electrical Services Ltd,559,Response Maintenance,Contractors,5158
Redditch Borough Council,18/01/2017,270822,20096,1557.79,311.58,Pauls Electrical Services Ltd,559,Planned,Contractors,5158
Redditch Borough Council,18/01/2017,270813,20097,1112.58,222.54,Pauls Electrical Services Ltd,559,Planned,Contractors,5158
Redditch Borough Council,04/01/2017,270382,20117,562.26,112.45,Pauls Electrical Services Ltd,559,Street Lighting,General Repairs,3100
Redditch Borough Council,11/01/2017,271010,3417/01111206,715.4,0,Gibbs & Dandy Timber,5603,Crossgate Stocks,Received Not Invoiced,2096
Redditch Borough Council,11/01/2017,271010,3417/01111206,0,143.08,Gibbs & Dandy Timber,5603,Crossgate Stocks,Stock Account (Cedar),1201
Redditch Borough Council,25/01/2017,271686,44/2016,56646.51,11329.3,Paul Holman Associates,561,Theatre Management,Professional Fees,4352
Redditch Borough Council,11/01/2017,270095,490748,1800,360,Presco Uk Ltd,5644,Print & Reprographic Unit,Equip Repairs & Maint,4002
Redditch Borough Council,04/01/2017,268225,SH131418,614.14,0,Classic Hardware,5646,Crossgate Stocks,Received Not Invoiced,2096
Redditch Borough Council,04/01/2017,268225,SH131418,0,122.83,Classic Hardware,5646,Crossgate Stocks,Stock Account (Cedar),1201
Redditch Borough Council,25/01/2017,271950,GA1328013,279.22,55.85,Gamma Business Communications Ltd,5650,Business Centres,Telephone Rental,4451
Redditch Borough Council,25/01/2017,271950,GA1328013,269.36,53.84,Gamma Business Communications Ltd,5650,Indoor Sports & Rec Facilities,Telephone Rental,4451
Redditch Borough Council,25/01/2017,271950,GA1328013,216.79,43.36,Gamma Business Communications Ltd,5650,Community Development,Telephone Rental,4451
Redditch Borough Council,25/01/2017,271950,GA1328013,201.15,40.23,Gamma Business Communications Ltd,5650,Theatre Management,Telephone Rental,4451
Redditch Borough Council,25/01/2017,271950,GA1328013,165.31,33.06,Gamma Business Communications Ltd,5650,Administrative Buildings,Telephone Rental,4451
Redditch Borough Council,25/01/2017,271950,GA1328013,156.35,31.28,Gamma Business Communications Ltd,5650,Central Switchboard,Telephone Rental,4451
Redditch Borough Council,25/01/2017,271950,GA1328013,123.12,24.62,Gamma Business Communications Ltd,5650,Crematoria,Telephone Rental,4451
Redditch Borough Council,25/01/2017,271950,GA1328013,121.08,24.24,Gamma Business Communications Ltd,5650,Community Centres,Telephone Rental,4451
Redditch Borough Council,25/01/2017,271950,GA1328013,100.15,20.02,Gamma Business Communications Ltd,5650,Economic Development,Telephone Rental,4451
Redditch Borough Council,25/01/2017,271950,GA1328013,94.13,18.83,Gamma Business Communications Ltd,5650,Museums And Gallaries,Telephone Rental,4451
Redditch Borough Council,25/01/2017,271950,GA1328013,63.14,12.63,Gamma Business Communications Ltd,5650,St Davids Hse - Support,Telephone Rental,4451
Redditch Borough Council,25/01/2017,271950,GA1328013,60.81,12.15,Gamma Business Communications Ltd,5650,Housing Locality Service,Telephone Rental,4451
Redditch Borough Council,25/01/2017,271950,GA1328013,42.75,8.55,Gamma Business Communications Ltd,5650,Lifeline - Support,Telephone Rental,4451
Redditch Borough Council,25/01/2017,271950,GA1328013,42.07,8.41,Gamma Business Communications Ltd,5650,Golf Courses,Telephone Rental,4451
Redditch Borough Council,25/01/2017,271950,GA1328013,20.18,4.04,Gamma Business Communications Ltd,5650,Business Centres,Alarm Rental,3501
Redditch Borough Council,25/01/2017,271950,GA1328013,20.18,4.04,Gamma Business Communications Ltd,5650,Countryside Rec And M'Ment,Telephone Rental,4451
Redditch Borough Council,25/01/2017,271950,GA1328013,20.18,4.04,Gamma Business Communications Ltd,5650,Planned,Telephone Rental,4451
Redditch Borough Council,25/01/2017,271950,GA1328013,20.18,4.04,Gamma Business Communications Ltd,5650,Rbc Vehicle Workhop,Telephone Rental,4451
Redditch Borough Council,18/01/2017,271438,3RD INS 16/17,2466.77,0,Bromsgrove And Redditch Network,5680,Grants To Vol Sector,Grants To Voluntary Bodies,4661
Redditch Borough Council,18/01/2017,271448,FINAL INSTALMEN,2466.77,0,Bromsgrove And Redditch Network,5680,Grants To Vol Sector,Grants To Voluntary Bodies,4661
Redditch Borough Council,18/01/2017,271437,FINAL INST 1617,1494.56,0,Bromsgrove And Redditch Network,5680,Grants To Vol Sector,Grants To Voluntary Bodies,4661
Redditch Borough Council,18/01/2017,271449,3ES INST 16/17,1494.56,0,Bromsgrove And Redditch Network,5680,Grants To Vol Sector,Grants To Voluntary Bodies,4661
Redditch Borough Council,25/01/2017,271891,17006052,670,134,Lee Hecht Harrison Penna Limited,5684,Corporate Staff Costs,Training,3043
Redditch Borough Council,18/01/2017,271486,VIV17_000060,976.15,195.23,Heil Farid European Co Ltd,5706,Household Waste Collection,Materials (Veh),3700
Redditch Borough Council,04/01/2017,270405,1977403,4327.33,0,Kiddivouchers,5766,Payroll Control,Payments Over -Current Year,2921
Redditch Borough Council,04/01/2017,270405,1977403,43.27,8.65,Kiddivouchers,5766,Payroll,Misc. Expenses,4730
Redditch Borough Council,25/01/2017,271515,1-0418622,585,117,Zoggs Retail,5823,Indoor Sports & Rec Facilities,Purchases For Resale,4050
Redditch Borough Council,11/01/2017,270607,18172261,500,100,Newsquest (Midlands Wales & South West) Ltd,584,Household Waste Collection,Publicity & Promotion,4700
Redditch Borough Council,04/01/2017,270610,SUBS 2017,1639,0,Royal Town Planning Institute,5950,Planning Policy,Employee Subscription,3041
Redditch Borough Council,18/01/2017,268631,944930,1113.84,222.77,Morgan Hunt Recruitment,596,Local Taxation,Agency Staff,3020
Redditch Borough Council,18/01/2017,268153,943257,1082.16,216.43,Morgan Hunt Recruitment,596,Local Taxation,Agency Staff,3020
Redditch Borough Council,18/01/2017,269221,946396,974.4,194.88,Morgan Hunt Recruitment,596,Local Taxation,Agency Staff,3020
Redditch Borough Council,18/01/2017,270316,949592,814,162.8,Morgan Hunt Recruitment,596,Local Taxation,Agency Staff,3020
Redditch Borough Council,25/01/2017,271542,954196,814,162.8,Morgan Hunt Recruitment,596,Local Taxation,Agency Staff,3020
Redditch Borough Council,18/01/2017,269662,947968,798.24,159.65,Morgan Hunt Recruitment,596,Local Taxation,Agency Staff,3020
Redditch Borough Council,11/01/2017,270454,950741,792.4,158.48,Morgan Hunt Recruitment,596,Hsg Tenancy Management Team,Agency Staff,3020
Redditch Borough Council,11/01/2017,266331,938811,758.64,151.73,Morgan Hunt Recruitment,596,Hsg Tenancy Management Team,Agency Staff,3020
Redditch Borough Council,11/01/2017,268152,943255,742.5,148.5,Morgan Hunt Recruitment,596,Local Taxation,Agency Staff,3020
Redditch Borough Council,25/01/2017,271098,952860,726,145.2,Morgan Hunt Recruitment,596,Local Taxation,Agency Staff,3020
Redditch Borough Council,11/01/2017,269222,946395,717.6,143.52,Morgan Hunt Recruitment,596,Hsg Tenancy Management Team,Agency Staff,3020
Redditch Borough Council,11/01/2017,270318,949589,627,125.4,Morgan Hunt Recruitment,596,Hsg Tenancy Management Team,Agency Staff,3020
Redditch Borough Council,18/01/2017,270455,950742,594,118.8,Morgan Hunt Recruitment,596,Local Taxation,Agency Staff,3020
Redditch Borough Council,11/01/2017,269664,947967,591.09,118.22,Morgan Hunt Recruitment,596,Hsg Tenancy Management Team,Agency Staff,3020
Redditch Borough Council,18/01/2017,271099,952858,576,115.2,Morgan Hunt Recruitment,596,Local Taxation,Agency Staff,3020
Redditch Borough Council,25/01/2017,271056,0071012245,671,126.15,Optima Health,59907,Corporate Staff Costs,Medical Fees,3040
Redditch Borough Council,04/01/2017,269533,M201500025,4390,0,Quantum Billing,59989,Voids Team,Contractors,5158
Redditch Borough Council,04/01/2017,270421,NO00389,675,0,Redacted Personal Data,59998,Safer & Stronger Communities,Project Work,4733
Redditch Borough Council,25/01/2017,271943,JANUARY GPC,3241.94,23.76,National Westminster Bank Plc,6015,Payments,Credit Card Charges,4358
Redditch Borough Council,25/01/2017,271736,151685,14295,2859,Global Plant Sales Ltd,6028,Rbc Balance Sheet,Vehicles - Purchase,8150
Redditch Borough Council,11/01/2017,268908,151077,879.68,160.14,Global Plant Sales Ltd,6028,Grounds Maint - Parks,Operational Equip- Purchase,4150
Redditch Borough Council,18/01/2017,271301,PANTO006,543,0,Redacted Personal Data,6035,Theatre Management,Purchases For Resale,4050
Redditch Borough Council,04/01/2017,270495,INV2016/12,660,0,Redacted Personal Data,6041,Indoor Sports & Rec Facilities,Casual Staff,3022
Redditch Borough Council,04/01/2017,270488,168,2040,408,Resources Consultancy Ltd,60829,Payroll,Consultants Fees,4351
Redditch Borough Council,04/01/2017,270488,168,1575,315,Resources Consultancy Ltd,60829,Finance,Consultants Fees,4351
Redditch Borough Council,18/01/2017,269471,116607,2310,462,Mercia Waste Management,610,Voids Team,Waste Disposal,5000
Redditch Borough Council,04/01/2017,269472,116608,1755.6,351.12,Mercia Waste Management,610,Voids Team,Waste Disposal,5000
Redditch Borough Council,18/01/2017,270817,IN05121672A,600,120,Greenway Energy Limited,61041,Voids Team,Contractors,5158
Redditch Borough Council,11/01/2017,267804,IN16111671,540,108,Greenway Energy Limited,61041,Voids Team,Contractors,5158
Redditch Borough Council,11/01/2017,267557,0000354233,637.95,127.59,The Till Roll Co Ltd,6132,Indoor Sports & Rec Facilities,Operational Equip- Purchase,4150
Redditch Borough Council,18/01/2017,271291,1453,2778,555.6,Fence-Line Ltd,61339,Rbc Balance Sheet,Other Contract Payments,8155
Redditch Borough Council,04/01/2017,270401,23560,3185.28,637.06,Key Ostas,61367,Corporate Staff Costs,Training,3043
Redditch Borough Council,25/01/2017,270517,76800777,80080.15,16016.03,Place Partnership Limited,61388,Place Partnership,Place Partnership,5022
Redditch Borough Council,25/01/2017,270518,76800778,76678.59,15335.72,Place Partnership Limited,61388,Place Partnership,Place Partnership,5022
Redditch Borough Council,25/01/2017,245221,76800110,30962.25,6192.45,Place Partnership Limited,61388,Asset Maintenance,Wett Shared Service Cost,5013
Redditch Borough Council,25/01/2017,245352,76800102,25253,5050.6,Place Partnership Limited,61388,Asset Maintenance,Wett Shared Service Cost,5013
Redditch Borough Council,25/01/2017,242665,76800081,24181.5,4836.3,Place Partnership Limited,61388,Head Of Leisure & Cultural Ser,Third Party Purchases,4010
Redditch Borough Council,25/01/2017,259922,76800284,17272.5,3454.5,Place Partnership Limited,61388,Head Of Leisure & Cultural Ser,Third Party Purchases,4010
Redditch Borough Council,25/01/2017,247285,76800135,-238950,-47790,Place Partnership Limited,61388,Asset Maintenance,Wett Shared Service Cost,5013
Redditch Borough Council,11/01/2017,271017,3RD INS 2016/17,2500,0,Touchstones Support Cic,6165,Grants To Vol Sector,Grants To Voluntary Bodies,4661
Redditch Borough Council,18/01/2017,270107,680/0082867,1031.27,206.25,Howdens Joinery Ltd,620,Voids Team,Materials,4170
Redditch Borough Council,25/01/2017,270908,SIV162052,9924.37,1984.87,Les Mills Fitness Uk Ltd,6203,Rbc Balance Sheet,Machinery & Equip - Purchase,8152
Redditch Borough Council,18/01/2017,270896,3170019,906.5,181.3,Its Designs Ltd,6251,Lifeline - Support,Operational Equip- Purchase,4150
Redditch Borough Council,11/01/2017,269787,3001855,1121.25,224.25,Lg Futures,6271,Non-Domestic Rates,Books & Publications,4303
Redditch Borough Council,25/01/2017,269809,114116,900,0,Hilltop Supplies Ltd,628,Crossgate Stocks,Received Not Invoiced,2096
Redditch Borough Council,25/01/2017,269809,114116,0,180,Hilltop Supplies Ltd,628,Crossgate Stocks,Stock Account (Cedar),1201
Redditch Borough Council,11/01/2017,270876,INV8844,1180,236,Lion Containers Ltd,62971,Planned,Contractors,5158
Redditch Borough Council,18/01/2017,271435,1ST INS 2016/17,1500,0,Redditch Mental Health Action Group,62981,Grants To Vol Sector,Grants To Voluntary Bodies,4661
Redditch Borough Council,25/01/2017,271537,11573,24192,4838.4,Professional Data Management Services Ltd,63116,Rbc Balance Sheet,Contract Payments,8131
Redditch Borough Council,25/01/2017,271237,43858,25971.4,5194.28,Pulse Fitness Ltd,63527,Rbc Balance Sheet,Machinery & Equip - Purchase,8152
Redditch Borough Council,25/01/2017,271238,43949,995,199,Pulse Fitness Ltd,63527,Rbc Balance Sheet,Machinery & Equip - Purchase,8152
Redditch Borough Council,25/01/2017,270643,SL1528,2296.85,0,St Basils,6360,Homelessness Administration,Temporary Accomodation,4557
Redditch Borough Council,25/01/2017,270654,SL1529,2296.85,0,St Basils,6360,Homelessness Administration,Temporary Accomodation,4557
Redditch Borough Council,25/01/2017,271719,17052,795,159,Haven Systems Limited,637,Theatre Management,Operational Equip- Purchase,4150
Redditch Borough Council,18/01/2017,271292,RBC003,1250,0,Redacted Personal Data,63778,Museums And Gallaries,Project Work,4733
Redditch Borough Council,04/01/2017,270608,0001007864,8532.81,1706.56,Kingdom,63839,Welfare Services,Contract Cleaning,3600
Redditch Borough Council,11/01/2017,271020,012,25239.02,1261.95,Yes Energy Solutions,63937,Rbc Balance Sheet,Contract Payments,8131
Redditch Borough Council,25/01/2017,271923,328,5700,1140,Iscas Ltd,63968,Single System,Consultants Fees,4351
Redditch Borough Council,25/01/2017,271924,329,2375,475,Iscas Ltd,63968,Single System,Consultants Fees,4351
Redditch Borough Council,04/01/2017,269889,6,1230,0,Redacted Personal Data,64131,Safer & Stronger Communities,Project Work,4733
Redditch Borough Council,11/01/2017,270329,11262,1349.75,269.95,Chamberlain Recruitment Ltd,64165,Planned,Agency Staff,3020
Redditch Borough Council,11/01/2017,269804,11133,1040.8,208.16,Chamberlain Recruitment Ltd,64165,Planned,Agency Staff,3020
Redditch Borough Council,11/01/2017,269803,11097,920,184,Chamberlain Recruitment Ltd,64165,Planned,Agency Staff,3020
Redditch Borough Council,11/01/2017,269718,11246,840,168,Chamberlain Recruitment Ltd,64165,Planned,Agency Staff,3020
Redditch Borough Council,11/01/2017,270328,11263,840,168,Chamberlain Recruitment Ltd,64165,Planned,Agency Staff,3020
Redditch Borough Council,11/01/2017,269802,11155,758.95,151.79,Chamberlain Recruitment Ltd,64165,Planned,Agency Staff,3020
Redditch Borough Council,11/01/2017,270432,11282,639,127.8,Chamberlain Recruitment Ltd,64165,Planned,Agency Staff,3020
Redditch Borough Council,11/01/2017,270512,10107761,13821.25,2764.25,Total Integrated Solutions Limited,64246,Cctv Operating Costs,Operation Equip -Rep & Maint,4152
Redditch Borough Council,04/01/2017,270578,21210658/9396,624,0,Doctors Chambers Uk Ltd,64323,Internal Ins A/C,Third Party Claims,2941
Redditch Borough Council,18/01/2017,270393,14287,1110,222,Hall Mechanical Services Ltd,644,Rbc Balance Sheet,Contract Payments,8131
Redditch Borough Council,04/01/2017,270004,14274,880,176,Hall Mechanical Services Ltd,644,Response Maintenance,Contractors,5158
Redditch Borough Council,04/01/2017,265956,14169,555,111,Hall Mechanical Services Ltd,644,Response Maintenance,Contractors,5158
Redditch Borough Council,18/01/2017,271375,2204104249,1619.01,323.77,North Bromsgrove High School,64442,Bromsgrove Csp,Project Work,4733
Redditch Borough Council,25/01/2017,271287,0000105000,2803,560.6,British Harlequin Plc,64581,Community Centres,Operational Equip- Purchase,4150
Redditch Borough Council,13/01/2017,271333,Redacted Personal Data,650,0,Redacted Personal Data,64689,Homelessness Administration,Rent Deposit Scheme,4701
Redditch Borough Council,11/01/2017,269785,TD592509,600,120,Joseph Ash Galvanising Ltd,64721,Arts Development And Support,Project Work,4733
Redditch Borough Council,25/01/2017,271844,2584,31349.48,6269.89,Vanguard Contracts Ltd,64731,Rbc Balance Sheet,Machinery & Equip - Purchase,8152
Redditch Borough Council,04/01/2017,270466,03/11/16,890.46,0,Redacted Personal Data,64803,Theatre Management,Professional Fees,4352
Redditch Borough Council,18/01/2017,271244,00601025,1420,284,Lester Aldridge Llp,64839,Job Evaluation,Consultants Fees,4351
Redditch Borough Council,18/01/2017,270856,RDC001,554.8,110.96,Oakwood Training,64846,Members Services,Training,3043
Redditch Borough Council,18/01/2017,271289,Q25761,2995,599,Keiser Uk,64873,Indoor Sports & Rec Facilities,Operational Equip- Purchase,4150
Redditch Borough Council,18/01/2017,271289,Q25761,995,199,Keiser Uk,64873,Indoor Sports & Rec Facilities,Training,3043
Redditch Borough Council,25/01/2017,270814,I6894,1125,225,Peter Dorrell & Company,64911,Rbc Balance Sheet,Machinery & Equip - Purchase,8152
Redditch Borough Council,25/01/2017,271816,INUK7815,16775,3355,Triple P Uk Limited,64913,Community Development,Training,3043
Redditch Borough Council,11/01/2017,271095,2078,2720,544,Barnsley Marshall Limited,64940,Rbc Balance Sheet,Contract Payments,8131
Redditch Borough Council,25/01/2017,271676,29/09/2016,1255.34,0,Redacted Personal Data,64972,Theatre Management,Professional Fees,4352
Redditch Borough Council,25/01/2017,271675,1,1238.4,0,Redacted Personal Data,64973,Theatre Management,Professional Fees,4352
Redditch Borough Council,11/01/2017,270871,18/463126,812.5,162.5,Greenham Trading Limited,650,Planned,Contractors,5158
Redditch Borough Council,25/01/2017,271931,1207,811,162.2,Fitbox Virtual Ltd,65044,Rbc Balance Sheet,Machinery & Equip - Purchase,8152
Redditch Borough Council,11/01/2017,270862,1131,680,-32,3 Lions Removals,6519,Bed And Breakfast Accom.,Removal Costs,4550
Redditch Borough Council,11/01/2017,268319,1093,580,0,3 Lions Removals,6519,Bed And Breakfast Accom.,Removal Costs,4550
Redditch Borough Council,11/01/2017,270861,1127,392,78.4,3 Lions Removals,6519,Bed And Breakfast Accom.,Storage Costs,4551
Redditch Borough Council,11/01/2017,268319,1093,240,0,3 Lions Removals,6519,Bed And Breakfast Accom.,Storage Costs,4551
Redditch Borough Council,11/01/2017,270862,1131,160,32,3 Lions Removals,6519,Bed And Breakfast Accom.,Storage Costs,4551
Redditch Borough Council,11/01/2017,270861,1127,156,-78.4,3 Lions Removals,6519,Bed And Breakfast Accom.,Removal Costs,4550
Redditch Borough Council,18/01/2017,271441,3779,2150.98,430.2,So Television Ltd,6568,Theatre Management,Professional Fees,4352
Redditch Borough Council,25/01/2017,270948,72023,752.95,150.59,First Service Frozen Foods Ltd,66,Theatre Management,Catering Provisions(Vatable),4202
Redditch Borough Council,25/01/2017,271535,22602,1615.5,0,Ymca,661,Community Centres,Project Work,4733
Redditch Borough Council,04/01/2017,270579,ROUND 1 2016/17,500,0,Charisma Training (Vision Through Sound Cic),6659,Grants To Vol Sector,Grants To Voluntary Bodies,4661
Redditch Borough Council,04/01/2017,267657,SIN100052,1049.7,209.94,Clearwater Technology Ltd,6699,Hsg Capital,Contractors,5158
Redditch Borough Council,25/01/2017,271897,BAL DUE JAN 17,1169.89,0,Redacted Personal Data,6717,Theatre Management,Misc Exp Non Vat,4723
Redditch Borough Council,25/01/2017,266639,PKD0133959,8388.71,1677.74,Wychavon District Council,674,On-Street Parking,Other Local Authorities,5009
Redditch Borough Council,11/01/2017,268872,5638,594,118.8,Codsall H I Ltd T/Asouth Staff Windows,6812,Rbc Balance Sheet,Contract Payments,8131
Redditch Borough Council,04/01/2017,269709,5656,523,104.6,Codsall H I Ltd T/Asouth Staff Windows,6812,Rbc Balance Sheet,Contract Payments,8131
Redditch Borough Council,11/01/2017,270125,5666,523,104.6,Codsall H I Ltd T/Asouth Staff Windows,6812,Rbc Balance Sheet,Contract Payments,8131
Redditch Borough Council,18/01/2017,266977,16/019,1700,340,Steve Haskey Design Ltd,6853,Rbc Balance Sheet,Contract Payments,8131
Redditch Borough Council,13/01/2017,271328,Redacted Personal Data,126000,0,Hcb Solicitors,6857,Rbc Balance Sheet,Building - Purchase,8102
Redditch Borough Council,13/01/2017,271327,Redacted Personal Data,85000,0,Hcb Solicitors,6857,Rbc Balance Sheet,Building - Purchase,8102
Redditch Borough Council,04/01/2017,270570,CA-005102,5266,0,Premier Heating Company Ltd,6944,Rbc Balance Sheet,Disabled Facilities Grant,8701
Redditch Borough Council,25/01/2017,271852,CA-005331,3850,0,Premier Heating Company Ltd,6944,Rbc Balance Sheet,Disabled Facilities Grant,8701
Redditch Borough Council,04/01/2017,270568,CA-006366,684,0,Premier Heating Company Ltd,6944,Rbc Balance Sheet,Disabled Facilities Grant,8701
Redditch Borough Council,18/01/2017,271487,I08988302,2980.3,0,Hall Fuels,6959,Crossgate Stocks,Received Not Invoiced,2096
Redditch Borough Council,18/01/2017,271487,I08988302,0,596.06,Hall Fuels,6959,Crossgate Stocks,Stock Account (Cedar),1201
Redditch Borough Council,25/01/2017,271752,345487,995.04,199.01,Bell Plumbing Supplies,6981,Planned,Contractors,5158
Redditch Borough Council,25/01/2017,271380,356557,964.66,192.93,Bell Plumbing Supplies,6981,Planned,Contractors,5158
Redditch Borough Council,11/01/2017,270926,355442,854.66,170.93,Bell Plumbing Supplies,6981,Planned,Contractors,5158
Redditch Borough Council,25/01/2017,271379,356556,815.08,163.02,Bell Plumbing Supplies,6981,Planned,Contractors,5158
Redditch Borough Council,11/01/2017,270924,355440,785.47,157.09,Bell Plumbing Supplies,6981,Planned,Contractors,5158
Redditch Borough Council,25/01/2017,271755,346774,780.22,156.04,Bell Plumbing Supplies,6981,Planned,Contractors,5158
Redditch Borough Council,25/01/2017,271753,345489,770.46,154.09,Bell Plumbing Supplies,6981,Planned,Contractors,5158
Redditch Borough Council,04/01/2017,270490,354716,765.62,153.12,Bell Plumbing Supplies,6981,Planned,Contractors,5158
Redditch Borough Council,25/01/2017,271818,357767,765.29,153.06,Bell Plumbing Supplies,6981,Planned,Contractors,5158
Redditch Borough Council,04/01/2017,270100,354077,749.81,149.96,Bell Plumbing Supplies,6981,Planned,Contractors,5158
Redditch Borough Council,25/01/2017,271759,350409,746.25,149.25,Bell Plumbing Supplies,6981,Planned,Contractors,5158
Redditch Borough Council,11/01/2017,270925,355437,745.99,149.2,Bell Plumbing Supplies,6981,Planned,Contractors,5158
Redditch Borough Council,25/01/2017,271378,356554,736.99,147.4,Bell Plumbing Supplies,6981,Planned,Contractors,5158
Redditch Borough Council,11/01/2017,269363,352148,735.29,147.06,Bell Plumbing Supplies,6981,Planned,Contractors,5158
Redditch Borough Council,25/01/2017,271756,346776,691.62,138.32,Bell Plumbing Supplies,6981,Planned,Contractors,5158
Redditch Borough Council,25/01/2017,271754,345492,665.91,133.18,Bell Plumbing Supplies,6981,Planned,Contractors,5158
Redditch Borough Council,25/01/2017,271821,357766,663.1,132.62,Bell Plumbing Supplies,6981,Planned,Contractors,5158
Redditch Borough Council,11/01/2017,270927,355436,578.4,0,Bell Plumbing Supplies,6981,Crossgate Stocks,Received Not Invoiced,2096
Redditch Borough Council,11/01/2017,270927,355436,0,115.68,Bell Plumbing Supplies,6981,Crossgate Stocks,Stock Account (Cedar),1201
Redditch Borough Council,11/01/2017,269137,22958,5151.68,1030.34,Niyaa People Limited,7093,Voids Team,Agency Staff,3020
Redditch Borough Council,25/01/2017,271680,23647,2540.63,508.13,Niyaa People Limited,7093,Voids Team,Agency Staff,3020
Redditch Borough Council,18/01/2017,270463,23307,2000.82,400.16,Niyaa People Limited,7093,Voids Team,Agency Staff,3020
Redditch Borough Council,25/01/2017,269270,23047,1550.7,310.14,Niyaa People Limited,7093,Planned,Agency Staff,3020
Redditch Borough Council,11/01/2017,269411,23056,1527.75,305.55,Niyaa People Limited,7093,Planned,Agency Staff,3020
Redditch Borough Council,25/01/2017,271870,23657,1526.85,305.37,Niyaa People Limited,7093,Planned,Agency Staff,3020
Redditch Borough Council,18/01/2017,271444,23618,1525.05,305.01,Niyaa People Limited,7093,Planned,Agency Staff,3020
Redditch Borough Council,11/01/2017,270459,23376,1501.5,300.3,Niyaa People Limited,7093,Planned,Agency Staff,3020
Redditch Borough Council,11/01/2017,270046,23185,1379.1,275.82,Niyaa People Limited,7093,Planned,Agency Staff,3020
Redditch Borough Council,25/01/2017,271043,23496,1223.55,244.71,Niyaa People Limited,7093,Planned,Agency Staff,3020
Redditch Borough Council,25/01/2017,271873,23664,1204.2,240.84,Niyaa People Limited,7093,Planned,Agency Staff,3020
Redditch Borough Council,18/01/2017,271445,23622,1154.5,230.9,Niyaa People Limited,7093,Planned,Agency Staff,3020
Redditch Borough Council,11/01/2017,270048,23189,1142.55,228.51,Niyaa People Limited,7093,Planned,Agency Staff,3020
Redditch Borough Council,11/01/2017,269412,23060,1128.15,225.63,Niyaa People Limited,7093,Planned,Agency Staff,3020
Redditch Borough Council,11/01/2017,270452,23321,1122,224.4,Niyaa People Limited,7093,Planned,Agency Staff,3020
Redditch Borough Council,11/01/2017,270074,23285,1078,215.6,Niyaa People Limited,7093,Planned,Agency Staff,3020
Redditch Borough Council,11/01/2017,269141,22955,1073.2,214.64,Niyaa People Limited,7093,Planned,Agency Staff,3020
Redditch Borough Council,18/01/2017,271500,23639,1008,201.6,Niyaa People Limited,7093,Planned,Agency Staff,3020
Redditch Borough Council,11/01/2017,269496,23140,999,199.8,Niyaa People Limited,7093,Planned,Agency Staff,3020
Redditch Borough Council,25/01/2017,271051,23502,969.3,193.86,Niyaa People Limited,7093,Planned,Agency Staff,3020
Redditch Borough Council,11/01/2017,269138,22950,946.5,189.3,Niyaa People Limited,7093,Planned,Agency Staff,3020
Redditch Borough Council,11/01/2017,270047,23186,919.5,183.9,Niyaa People Limited,7093,Planned,Agency Staff,3020
Redditch Borough Council,18/01/2017,271443,23619,879,175.8,Niyaa People Limited,7093,Planned,Agency Staff,3020
Redditch Borough Council,18/01/2017,271419,23597,864,172.8,Niyaa People Limited,7093,Planned,Agency Staff,3020
Redditch Borough Council,25/01/2017,270650,23387,855,171,Niyaa People Limited,7093,Planned,Agency Staff,3020
Redditch Borough Council,18/01/2017,271446,23630,852,170.4,Niyaa People Limited,7093,Planned,Agency Staff,3020
Redditch Borough Council,04/01/2017,269139,22951,844.5,168.9,Niyaa People Limited,7093,Planned,Agency Staff,3020
Redditch Borough Council,11/01/2017,269145,22980,840,168,Niyaa People Limited,7093,Planned,Agency Staff,3020
Redditch Borough Council,25/01/2017,271871,23659,840,168,Niyaa People Limited,7093,Planned,Agency Staff,3020
Redditch Borough Council,11/01/2017,269417,23079,822,164.4,Niyaa People Limited,7093,Planned,Agency Staff,3020
Redditch Borough Council,11/01/2017,269143,22981,808.5,161.7,Niyaa People Limited,7093,Planned,Agency Staff,3020
Redditch Borough Council,25/01/2017,270651,23388,802.5,160.5,Niyaa People Limited,7093,Planned,Agency Staff,3020
Redditch Borough Council,11/01/2017,270453,23322,801,160.2,Niyaa People Limited,7093,Planned,Agency Staff,3020
Redditch Borough Council,11/01/2017,270049,23205,795,159,Niyaa People Limited,7093,Planned,Agency Staff,3020
Redditch Borough Council,25/01/2017,271044,23497,793.5,158.7,Niyaa People Limited,7093,Planned,Agency Staff,3020
Redditch Borough Council,25/01/2017,271047,23515,789,157.8,Niyaa People Limited,7093,Planned,Agency Staff,3020
Redditch Borough Council,11/01/2017,270042,23206,786,157.2,Niyaa People Limited,7093,Planned,Agency Staff,3020
Redditch Borough Council,11/01/2017,270462,23382,766.8,153.36,Niyaa People Limited,7093,Planned,Agency Staff,3020
Redditch Borough Council,11/01/2017,269416,23078,756,151.2,Niyaa People Limited,7093,Planned,Agency Staff,3020
Redditch Borough Council,11/01/2017,270461,23377,729,145.8,Niyaa People Limited,7093,Planned,Agency Staff,3020
Redditch Borough Council,04/01/2017,268378,22869,708,141.6,Niyaa People Limited,7093,Planned,Agency Staff,3020
Redditch Borough Council,25/01/2017,271872,23658,708,141.6,Niyaa People Limited,7093,Planned,Agency Staff,3020
Redditch Borough Council,11/01/2017,269414,23075,658.75,131.75,Niyaa People Limited,7093,Planned,Agency Staff,3020
Redditch Borough Council,11/01/2017,270044,23202,658.75,131.75,Niyaa People Limited,7093,Planned,Agency Staff,3020
Redditch Borough Council,18/01/2017,271420,23595,647.13,129.43,Niyaa People Limited,7093,Planned,Agency Staff,3020
Redditch Borough Council,25/01/2017,271052,23498,645.25,129.05,Niyaa People Limited,7093,Planned,Agency Staff,3020
Redditch Borough Council,11/01/2017,269756,22648,609.75,121.95,Niyaa People Limited,7093,Voids Team,Agency Staff,3020
Redditch Borough Council,25/01/2017,271403,23553,609.3,121.86,Niyaa People Limited,7093,Voids Team,Agency Staff,3020
Redditch Borough Council,25/01/2017,271875,23681,600.63,120.13,Niyaa People Limited,7093,Planned,Agency Staff,3020
Redditch Borough Council,25/01/2017,270450,23311,594,118.8,Niyaa People Limited,7093,Planned,Agency Staff,3020
Redditch Borough Council,11/01/2017,269413,23067,593.55,118.71,Niyaa People Limited,7093,Planned,Agency Staff,3020
Redditch Borough Council,11/01/2017,270045,23195,592.2,118.44,Niyaa People Limited,7093,Planned,Agency Staff,3020
Redditch Borough Council,25/01/2017,270652,23389,579,115.8,Niyaa People Limited,7093,Planned,Agency Staff,3020
Redditch Borough Council,25/01/2017,270648,23391,576,115.2,Niyaa People Limited,7093,Planned,Agency Staff,3020
Redditch Borough Council,25/01/2017,271053,23512,558,111.6,Niyaa People Limited,7093,Planned,Agency Staff,3020
Redditch Borough Council,11/01/2017,270460,23380,530.88,106.18,Niyaa People Limited,7093,Planned,Agency Staff,3020
Redditch Borough Council,25/01/2017,271765,11THJANUARY2016,1530,0,Signs Of Hope Community Interest Company,7101,Rent-Rebates,Specialist Financial Support,4748
Redditch Borough Council,04/01/2017,270312,18,695,0,Signs Of Hope Community Interest Company,7101,Rent-Rebates,Specialist Financial Support,4748
Redditch Borough Council,11/01/2017,270782,CI206284/W,556.5,111.3,Incredible Window Cleaning Limited,7140,Welfare Services,Window Cleaning,3601
Redditch Borough Council,25/01/2017,271251,13702,17914.87,3582.97,J S A Construction,7142,Voids Team,Contractors,5158
Redditch Borough Council,11/01/2017,268467,13684,5869.32,1173.86,J S A Construction,7142,Rbc Balance Sheet,Contract Payments,8131
Redditch Borough Council,11/01/2017,269378,13688,2610.23,522.05,J S A Construction,7142,Rbc Balance Sheet,Contract Payments,8131
Redditch Borough Council,04/01/2017,270336,LA0206-61992,6161.51,0,The Housing Ombudsman,7173,Head Of Housing Services,Subscriptions,4650
Redditch Borough Council,04/01/2017,270622,INV-1124,813.67,162.73,Moule And Co Ltd,7319,Community Parks & Open Spaces,Project Work,4733
Redditch Borough Council,11/01/2017,269386,783379,1711.45,342.29,Swallow,7323,Theatre Management,Catering Provisions(Vat Exempt,4200
Redditch Borough Council,04/01/2017,269385,783380,921.62,184.32,Swallow,7323,Theatre Management,Catering Provisions(Vatable),4202
Redditch Borough Council,25/01/2017,270851,498778,721,144.2,Sportsafe Uk Ltd,7364,Indoor Sports & Rec Facilities,Operation Equip -Rep & Maint,4152
Redditch Borough Council,18/01/2017,271351,15800,3387.64,677.53,Vehicle Body Services Ltd,7369,Place Team 1 (Redditch),Materials (Veh),3700
Redditch Borough Council,18/01/2017,270933,15782,2684.27,536.85,Vehicle Body Services Ltd,7369,Place Team 2 (Redditch),Materials (Veh),3700
Redditch Borough Council,13/01/2017,271331,Redacted Personal Data,1042.5,0,A P Morgan Estate Agents,7408,Housing Policy,Rents,3350
Redditch Borough Council,13/01/2017,271330,Redacted Personal Data,695,0,A P Morgan Estate Agents,7408,Housing Policy,Rents,3350
Redditch Borough Council,11/01/2017,271062,BSG-PA42017,4922.75,0,Batchley Support Group,742,Community Centres,Project Work,4733
Redditch Borough Council,25/01/2017,269370,19B,617.5,0,Future Youth Impact Ltd,7432,Bromsgrove Csp,Project Work,4733
Redditch Borough Council,25/01/2017,271890,2016/2017 Q3,195838.8,0,Dclg,7434,Rbc Balance Sheet,Useable Capital Receipts Hra,2407
Redditch Borough Council,11/01/2017,270464,002RPT/SI,750,150,Signed,7444,Theatre Management,Professional Fees,4352
Redditch Borough Council,04/01/2017,270121,00165288,814,162.8,James Andrews Recruitment Solutions,7492,Hsg Options,Agency Staff,3020
Redditch Borough Council,11/01/2017,270802,00165680,814,162.8,James Andrews Recruitment Solutions,7492,Hsg Options,Agency Staff,3020
Redditch Borough Council,11/01/2017,270803,00165681,814,162.8,James Andrews Recruitment Solutions,7492,Hsg Options,Agency Staff,3020
Redditch Borough Council,25/01/2017,271941,00166669,814,162.8,James Andrews Recruitment Solutions,7492,Hsg Options,Agency Staff,3020
Redditch Borough Council,04/01/2017,269499,00164958,792,158.4,James Andrews Recruitment Solutions,7492,Hsg Options,Agency Staff,3020
Redditch Borough Council,04/01/2017,270122,00165289,737,147.4,James Andrews Recruitment Solutions,7492,Hsg Options,Agency Staff,3020
Redditch Borough Council,25/01/2017,271942,00166668,660,132,James Andrews Recruitment Solutions,7492,Hsg Options,Agency Staff,3020
Redditch Borough Council,11/01/2017,271050,00166058,583,116.6,James Andrews Recruitment Solutions,7492,Hsg Options,Agency Staff,3020
Redditch Borough Council,18/01/2017,271041,00166059,511.5,102.3,James Andrews Recruitment Solutions,7492,Hsg Options,Agency Staff,3020
Redditch Borough Council,18/01/2017,270936,SIN147538,950,190,Frontier Software Plc,782,Payroll,Software Maintenance,4503
Redditch Borough Council,25/01/2017,265088,01988069,635.8,127.16,G4s Cash Services (Uk) Ltd,790,Customer Service Centres,Cash Collection Charges,4361
Redditch Borough Council,25/01/2017,267249,01998258,635.8,127.16,G4s Cash Services (Uk) Ltd,790,Customer Service Centres,Cash Collection Charges,4361
Redditch Borough Council,25/01/2017,269473,02009329,635.8,127.16,G4s Cash Services (Uk) Ltd,790,Customer Service Centres,Cash Collection Charges,4361
Redditch Borough Council,18/01/2017,270425,1611009859,603.9,120.78,Geocel Limited,794,Crossgate Stocks,Stock Variance,1203
Redditch Borough Council,18/01/2017,270425,1611009859,54.9,0,Geocel Limited,794,Crossgate Stocks,Received Not Invoiced,2096
Redditch Borough Council,18/01/2017,270425,1611009859,0,10.98,Geocel Limited,794,Crossgate Stocks,Stock Account (Cedar),1201
Redditch Borough Council,04/01/2017,269910,2271,34264.44,6852.86,Abbey & Lyndon Building Ltd,798,Rbc Balance Sheet,Contract Payments,8131
Redditch Borough Council,18/01/2017,270627,2276,4624.05,924.81,Abbey & Lyndon Building Ltd,798,Rbc Balance Sheet,Contract Payments,8131
Redditch Borough Council,18/01/2017,270628,2275,3057.69,611.54,Abbey & Lyndon Building Ltd,798,Rbc Balance Sheet,Contract Payments,8131
Redditch Borough Council,25/01/2017,270973,2282,2961.39,592.27,Abbey & Lyndon Building Ltd,798,Response Maintenance,Contractors,5158
Redditch Borough Council,11/01/2017,269713,2259,2742.1,548.41,Abbey & Lyndon Building Ltd,798,Response Maintenance,Contractors,5158
Redditch Borough Council,04/01/2017,267859,2237,2238.14,447.61,Abbey & Lyndon Building Ltd,798,Response Maintenance,Contractors,5158
Redditch Borough Council,11/01/2017,269712,2260,1905.16,381.03,Abbey & Lyndon Building Ltd,798,Response Maintenance,Contractors,5158
Redditch Borough Council,11/01/2017,266531,6302650,778.35,155.67,Antalis Limited,84,New Print Facilities,Central Printing,4301
Redditch Borough Council,18/01/2017,266347,1063416,1819,363.8,Redditch Skip Hire Ltd,984,Voids Team,Waste Disposal,5000
,,,,1817547.44,247787.88,,,,,
